bitfinex/quotes_SOLUSD_20250307
["timestamp","ask_amount","ask_price","bid_price","bid_amount"]
[1741315709478,36.12696809,141.3,141.23,78.2176026]
[1741315709678,30.36490217,141.29,141.23,78.2176026]
[1741315710168,30.36490217,141.29,141.23,390.2176026]
[1741315710369,30.36490217,141.3,141.23,390.2176026]
[1741315710570,30.36490217,141.3,141.25,0.14216157]
[1741315710767,82.0,141.35,141.28,0.14216157]
[1741315710982,30.36490217,141.34,141.28,0.14216157]
[1741315711202,30.36490217,141.29,141.22,47.71053886]
[1741315711401,30.36490217,141.26,141.22,47.71053886]
[1741315711897,30.36490217,141.28,141.23,0.14216157]
[1741315712074,30.36490217,141.29,141.23,185.65270043]
[1741315712279,30.36490217,141.32,141.26,0.14216157]
[1741315712595,82.0,141.35,141.26,0.14216157]
[1741315712596,30.36490217,141.3,141.26,0.14216157]
[1741315712895,30.36490217,141.29,141.26,0.14216157]
[1741315713115,30.36490217,141.29,141.24,0.14216157]
[1741315713281,30.36490217,141.3,141.24,0.14216157]
[1741315713477,30.36490217,141.31,141.24,30.50706374]
[1741315713673,30.36490217,141.31,141.26,0.14216157]
[1741315713876,82.0,141.32,141.26,0.14216157]
[1741315714188,30.36490217,141.33,141.26,78.2176026]
[1741315714375,30.36490217,141.33,141.26,85.8376026]
[1741315714574,30.36490217,141.33,141.26,92.9165026]
[1741315714777,30.36490217,141.36,141.3,0.14216157]
[1741315714998,30.36490217,141.34,141.3,0.14216157]
[1741315715200,5.77514258,141.36,141.27,185.51053886]
[1741315715201,30.36490217,141.33,141.27,185.51053886]
[1741315715381,30.36490217,141.32,141.28,0.14216157]
[1741315715874,82.14216157,141.35,141.28,0.14216157]
[1741315716075,30.36490217,141.34,141.28,47.85270043]
[1741315716287,30.36490217,141.35,141.28,85.2952026]
[1741315716483,30.36490217,141.36,141.3,0.14216157]
[1741315716793,89.34757564,141.37,141.31,30.50706374]
[1741315716794,0.03,141.37,141.31,30.50706374]
[1741315716998,0.03,141.37,141.33,0.14216157]
[1741315717184,30.36490217,141.36,141.33,0.14216157]
[1741315717384,30.39490217,141.37,141.33,0.14216157]
[1741315717799,0.03,141.37,141.33,0.14216157]
[1741315718285,0.03,141.37,141.33,78.2176026]
[1741315719307,0.03,141.37,141.33,47.85270043]
[1741315719507,30.39490217,141.37,141.33,0.14216157]
[1741315720180,30.39490217,141.37,141.33,312.14216157]
[1741315720509,0.03,141.37,141.33,359.85270043]
[1741315720713,0.03,141.37,141.33,397.2931026]
[1741315720902,0.03,141.37,141.33,390.2176026]
[1741315721204,0.03,141.37,141.33,359.85270043]
[1741315721507,0.03,141.37,141.33,390.2176026]
[1741315721996,0.03,141.37,141.33,359.85270043]
[1741315722584,0.03,141.37,141.33,47.85270043]
[1741315722793,0.03,141.37,141.35,0.14216157]
[1741315723175,0.03,141.37,141.35,30.50706374]
[1741315723378,0.03,141.37,141.35,78.2176026]
[1741315724103,0.03,141.37,141.35,47.85270043]
[1741315725218,30.36490217,141.36,141.31,47.71053886]
[1741315725411,30.36490217,141.32,141.28,185.51053886]
[1741315725715,30.36490217,141.32,141.28,359.71053886]
[1741315725886,30.36490217,141.32,141.27,6.1488]
[1741315726085,30.36490217,141.31,141.26,55.61053886]
[1741315726282,30.36490217,141.29,141.24,7.9]
[1741315726609,30.36490217,141.28,141.25,0.14216157]
[1741315726786,30.36490217,141.28,141.24,0.14216157]
[1741315727110,30.36490217,141.28,141.23,54.27493886]
[1741315727284,30.36490217,141.28,141.24,0.14216157]
[1741315727805,30.36490217,141.29,141.24,0.14216157]
[1741315728184,30.36490217,141.31,141.24,30.50706374]
[1741315728402,30.36490217,141.3,141.24,30.50706374]
[1741315728783,30.36490217,141.3,141.24,342.50706374]
[1741315728985,30.36490217,141.32,141.26,0.14216157]
[1741315729208,30.36490217,141.32,141.26,47.85270043]
[1741315729407,1.6409,141.33,141.27,30.36490217]
[1741315729617,30.36490217,141.32,141.28,0.14216157]
[1741315729922,0.03,141.31,141.28,0.14216157]
[1741315730207,0.03,141.31,141.27,0.14216157]
[1741315731281,0.03,141.31,141.27,30.50706374]
[1741315731485,0.03,141.31,141.27,38.36706374]
[1741315732322,0.03,141.31,141.29,0.14216157]
[1741315732495,0.03,141.31,141.29,78.2176026]
[1741315732811,0.03,141.31,141.29,47.85270043]
[1741315733614,0.03,141.31,141.27,7.86]
[1741315733790,30.36490217,141.3,141.27,7.86]
[1741315733990,30.36490217,141.28,141.22,175.601]
[1741315734209,0.03,141.31,141.25,30.36490217]
[1741315734413,0.03,141.31,141.26,30.50706374]
[1741315734621,0.03,141.31,141.25,7.84]
[1741315734787,7.7805,141.3,141.2,47.71053886]
[1741315734986,18.79181043,141.29,141.19,144.0818]
[1741315735282,89.7805,141.3,141.2,0.14216157]
[1741315735687,30.36490217,141.26,141.2,0.14216157]
[1741315735899,30.36490217,141.26,141.2,359.71053886]
[1741315736225,30.36490217,141.24,141.2,47.71053886]
[1741315736515,30.36490217,141.23,141.19,0.033]
[1741315737104,30.36490217,141.24,141.19,0.033]
[1741315737294,30.36490217,141.25,141.19,0.033]
[1741315738096,30.36490217,141.25,141.19,0.17516157]
[1741315738290,30.36490217,141.25,141.19,7.25776157]
[1741315738608,30.36490217,141.22,141.19,0.033]
[1741315738927,30.36490217,141.21,141.19,0.033]
[1741315739423,30.36490217,141.2,141.19,0.033]
[1741315739825,30.36490217,141.2,141.14,168.54]
[1741315740007,30.36490217,141.18,141.14,168.54]
[1741315740211,18.79181043,141.2,141.13,0.03]
[1741315740399,30.36490217,141.14,141.13,0.03]
[1741315740927,30.36490217,141.17,141.13,0.03]
[1741315741107,30.36490217,141.14,141.13,0.03]
[1741315741434,30.36490217,141.16,141.13,0.03]
[1741315741593,30.36490217,141.18,141.13,0.03]
[1741315741797,30.36490217,141.19,141.13,0.03]
[1741315742028,30.36490217,141.18,141.13,0.03]
[1741315742213,30.36490217,141.16,141.13,0.03]
[1741315742409,30.36490217,141.15,141.13,0.03]
[1741315742795,18.79181043,141.18,141.13,0.03]
[1741315743012,30.36490217,141.16,141.13,0.03]
[1741315743209,30.36490217,141.15,141.13,0.03]
[1741315743419,30.36490217,141.17,141.13,0.03]
[1741315743623,30.36490217,141.18,141.13,0.17216157]
[1741315744002,30.36490217,141.19,141.13,0.17216157]
[1741315744200,9.78858469,141.21,141.13,47.88270043]
[1741315744201,30.36490217,141.18,141.13,47.88270043]
[1741315744406,30.36490217,141.18,141.13,54.96830043]
[1741315744621,30.36490217,141.19,141.13,54.96830043]
[1741315744925,36.62100217,141.21,141.15,0.14216157]
[1741315745127,30.36490217,141.17,141.15,0.14216157]
[1741315745644,30.36490217,141.2,141.14,0.14216157]
[1741315745831,30.36490217,141.2,141.15,312.0]
[1741315746003,30.36490217,141.18,141.16,0.14216157]
[1741315746418,30.36490217,141.17,141.13,0.03]
[1741315746947,30.36490217,141.16,141.13,0.03]
[1741315748130,30.36490217,141.17,141.14,0.14216157]
[1741315748351,30.36490217,141.2,141.14,0.14216157]
[1741315748537,7.17998882,141.22,141.14,47.85270043]
[1741315748849,30.36490217,141.2,141.14,54.93770043]
[1741315749022,30.36490217,141.21,141.14,397.3026026]
[1741315749226,11.84947363,141.21,141.16,30.50706374]
[1741315749439,11.84947363,141.21,141.18,0.14216157]
[1741315749639,30.36490217,141.24,141.18,47.85270043]
[1741315749832,30.36490217,141.25,141.18,47.85270043]
[1741315750254,30.36490217,141.25,141.18,78.2176026]
[1741315750750,30.36490217,141.25,141.2,0.14216157]
[1741315750960,1.6139,141.26,141.2,0.14216157]
[1741315751143,1.6139,141.26,141.2,30.50706374]
[1741315751457,30.36490217,141.29,141.21,0.28432314]
[1741315751621,30.36490217,141.29,141.23,0.14216157]
[1741315752158,30.36490217,141.27,141.23,47.85270043]
[1741315752628,30.36490217,141.28,141.23,359.85270043]
[1741315753229,0.03,141.24,141.23,359.85270043]
[1741315753848,0.03,141.24,141.23,397.2982026]
[1741315754052,0.03,141.24,141.23,194.17947417]
[1741315755223,0.03,141.31,141.25,0.14216157]
[1741315755452,0.03,141.31,141.27,0.14216157]
[1741315755661,0.03,141.31,141.27,30.50706374]
[1741315755855,0.03,141.31,141.26,8.32]
[1741315756161,30.36490217,141.3,141.27,0.14216157]
[1741315756458,0.03,141.31,141.27,0.14216157]
[1741315756754,30.36490217,141.3,141.27,0.14216157]
[1741315756967,30.39490217,141.31,141.27,0.14216157]
[1741315757561,30.39490217,141.31,141.25,394.1]
[1741315757562,30.36490217,141.28,141.22,82.1]
[1741315757855,30.36490217,141.24,141.2,137.8]
[1741315758034,1.6618,141.26,141.17,137.8]
[1741315758228,30.36490217,141.23,141.18,0.14216157]
[1741315758425,30.36490217,141.24,141.18,18.933972]
[1741315758621,1.6618,141.26,141.2,0.14216157]
[1741315758622,32.02670217,141.26,141.2,0.14216157]
[1741315758841,32.02670217,141.26,141.19,30.36490217]
[1741315759363,20.30224886,141.31,141.22,0.14216157]
[1741315759530,30.36490217,141.25,141.22,82.24216157]
[1741315759855,30.36490217,141.25,141.18,175.24790217]
[1741315760025,30.36490217,141.25,141.19,0.14216157]
[1741315760449,30.36490217,141.25,141.19,312.14216157]
[1741315760670,30.36490217,141.26,141.19,342.50706374]
[1741315761132,30.36490217,141.25,141.19,312.0]
[1741315761332,30.36490217,141.25,141.2,0.14216157]
[1741315761854,30.36490217,141.23,141.19,312.0]
[1741315762241,30.36490217,141.24,141.2,0.14216157]
[1741315762445,0.14216157,141.3,141.2,0.14216157]
[1741315762770,30.36490217,141.28,141.2,168.30706374]
[1741315762947,30.36490217,141.29,141.22,30.64922531]
[1741315763138,30.36490217,141.3,141.24,18.933972]
[1741315763338,0.03,141.31,141.26,0.14216157]
[1741315763564,0.03,141.31,141.26,7.22126157]
[1741315763951,0.03,141.31,141.26,227.12126157]
[1741315764157,0.03,141.31,141.26,257.48616374]
[1741315764541,0.03,141.31,141.28,0.14216157]
[1741315764965,0.03,141.31,141.27,0.14216157]
[1741315765562,0.03,141.31,141.27,312.14216157]
[1741315765765,0.03,141.31,141.29,0.14216157]
[1741315766662,0.03,141.31,141.29,89.31966157]
[1741315767065,0.03,141.31,141.29,82.24216157]
[1741315769560,0.03,141.31,141.29,89.31966157]
[1741315770354,0.03,141.31,141.29,82.24216157]
[1741315771081,30.36490217,141.3,141.24,6.2955]
[1741315771676,30.36490217,141.29,141.24,0.14216157]
[1741315771858,30.36490217,141.29,141.23,82.1]
[1741315772059,30.36490217,141.29,141.24,0.14216157]
[1741315772364,0.03,141.31,141.26,0.14216157]
[1741315772556,0.03,141.31,141.26,312.14216157]
[1741315772873,30.39490217,141.31,141.25,0.14216157]
[1741315773247,0.03,141.31,141.25,30.50706374]
[1741315773749,0.03,141.31,141.27,0.14216157]
[1741315773951,30.39490217,141.31,141.27,0.14216157]
[1741315774369,30.39490217,141.31,141.26,0.14216157]
[1741315774573,0.03,141.31,141.26,0.14216157]
[1741315775068,30.39490217,141.31,141.26,0.14216157]
[1741315775569,30.39490217,141.31,141.26,7.22106157]
[1741315775771,0.03,141.31,141.26,319.22106157]
[1741315775953,30.39490217,141.31,141.26,312.14216157]
[1741315776152,0.03,141.31,141.26,319.22116157]
[1741315776549,0.03,141.31,141.3,0.14216157]
[1741315777379,0.03,141.31,141.3,7.21926157]
[1741315777677,0.03,141.31,141.3,276.27597417]
[1741315777973,0.03,141.37,141.32,0.14216157]
[1741315778188,0.03,141.37,141.34,0.14216157]
[1741315778873,30.39490217,141.37,141.33,0.14216157]
[1741315779075,0.03,141.37,141.33,0.14216157]
[1741315779377,30.36490217,141.36,141.33,0.14216157]
[1741315779578,30.36490217,141.36,141.33,312.14216157]
[1741315779784,30.36490217,141.36,141.33,0.14216157]
[1741315780769,30.36490217,141.35,141.33,0.14216157]
[1741315781251,0.03,141.37,141.3,0.14216157]
[1741315781252,30.36490217,141.34,141.3,0.14216157]
[1741315781460,30.36490217,141.32,141.29,82.1]
[1741315781764,30.36490217,141.32,141.26,0.14216157]
[1741315781949,30.36490217,141.31,141.26,82.1]
[1741315782156,30.36490217,141.3,141.26,82.1]
[1741315782366,31.87230217,141.32,141.27,0.14216157]
[1741315782549,1.5074,141.32,141.26,112.46490217]
[1741315782750,0.14216157,141.36,141.28,30.36490217]
[1741315782751,30.36490217,141.35,141.28,30.36490217]
[1741315782949,30.36490217,141.35,141.29,0.14216157]
[1741315783383,31.87230217,141.36,141.31,0.14216157]
[1741315783679,0.03,141.37,141.31,82.24216157]
[1741315783984,30.39490217,141.37,141.31,82.24216157]
[1741315784690,30.36490217,141.36,141.31,82.24216157]
[1741315784897,30.39490217,141.37,141.31,82.24216157]
[1741315785198,30.36490217,141.36,141.31,82.24216157]
[1741315785579,30.36490217,141.36,141.31,89.31866157]
[1741315785783,0.03,141.37,141.31,89.31866157]
[1741315785977,30.39490217,141.37,141.31,89.31866157]
[1741315786282,30.36490217,141.33,141.28,219.9]
[1741315786488,30.36490217,141.33,141.28,82.1]
[1741315786669,30.36490217,141.33,141.29,0.14216157]
[1741315787773,30.36490217,141.34,141.29,0.14216157]
[1741315788894,30.36490217,141.33,141.28,82.1]
[1741315789100,30.36490217,141.31,141.28,82.1]
[1741315789302,30.36490217,141.32,141.29,0.14216157]
[1741315790098,3.56641162,141.36,141.28,7.21986157]
[1741315790392,30.36490217,141.34,141.28,7.21986157]
[1741315790803,30.36490217,141.35,141.28,37.58476374]
[1741315791670,30.36490217,141.34,141.28,37.58476374]
[1741315791977,0.03,141.37,141.3,30.50706374]
[1741315792194,0.03,141.37,141.32,0.14216157]
[1741315792473,0.03,141.37,141.32,82.24216157]
[1741315793082,0.03,141.37,141.33,7.0756]
[1741315793695,0.03,141.37,141.33,319.0756]
[1741315794495,30.39490217,141.37,141.33,312.0]
[1741315795906,0.03,141.37,141.33,82.1]
[1741315796073,30.36490217,141.34,141.33,82.1]
[1741315796396,0.03,141.37,141.29,30.36490217]
[1741315796397,30.36490217,141.35,141.29,30.36490217]
[1741315796582,30.36490217,141.35,141.3,0.14216157]
[1741315797403,30.36490217,141.34,141.3,0.14216157]
[1741315798503,0.03,141.37,141.3,0.14216157]
[1741315798694,0.03,141.37,141.33,0.14216157]
[1741315798896,0.03,141.37,141.33,394.24216157]
[1741315799505,0.03,141.37,141.33,539.11776157]
[1741315799703,0.03,141.37,141.35,0.14216157]
[1741315800407,0.03,141.37,141.34,0.14216157]
[1741315800593,0.03,141.37,141.36,30.36490217]
[1741315800801,0.03,141.37,141.36,269.19887417]
[1741315801184,0.03,141.37,141.36,220.04216157]
[1741315801399,0.03,141.37,141.33,265.16050217]
[1741315801601,0.03,141.37,141.36,0.14216157]
[1741315803081,0.03,141.37,141.36,250.40706374]
[1741315803621,0.0001,141.37,141.36,588.27297417]
[1741315803799,0.0001,141.4,141.38,0.14216157]
[1741315804003,0.0001,141.4,141.39,63.58177417]
[1741315804183,0.0001,141.4,141.39,283.48177417]
[1741315805005,0.0001,141.4,141.39,271.76256374]
[1741315805219,0.0001,141.4,141.39,90.08216157]
[1741315805509,0.0001,141.4,141.39,138.47147417]
[1741315805729,0.03,141.43,141.4,18.933972]
[1741315805884,0.03,141.43,141.4,269.19887417]
[1741315806479,0.03,141.43,141.42,30.50706374]
[1741315806684,0.03,141.43,141.42,269.19887417]
[1741315806908,0.03,141.43,141.42,581.19887417]
[1741315807125,0.03,141.43,141.42,539.11326157]
[1741315807418,0.03,141.43,141.42,82.24216157]
[1741315808513,30.39490217,141.43,141.42,82.1]
[1741315808705,30.39490217,141.43,141.39,82.1]
[1741315808902,30.36490217,141.42,141.4,0.14216157]
[1741315809098,0.03,141.43,141.36,388.4]
[1741315809099,30.36490217,141.41,141.36,388.4]
[1741315809429,30.36490217,141.39,141.37,0.14216157]
[1741315809597,30.36490217,141.38,141.36,82.1]
[1741315809797,1.5209,141.36,141.31,82.133]
[1741315810013,30.36490217,141.33,141.31,0.033]
[1741315810217,30.36490217,141.32,141.31,0.033]
[1741315810400,30.36490217,141.33,141.31,0.033]
[1741315810907,30.36490217,141.34,141.31,0.033]
[1741315811915,31.88580217,141.36,141.31,0.033]
[1741315812105,31.88580217,141.36,141.32,0.14216157]
[1741315812308,30.36490217,141.38,141.32,0.14216157]
[1741315812806,30.36490217,141.38,141.34,0.14216157]
[1741315813118,30.36490217,141.35,141.33,0.14216157]
[1741315813492,30.36490217,141.35,141.31,0.033]
[1741315813822,30.36490217,141.34,141.31,0.17516157]
[1741315813994,88.1135,141.39,141.31,0.033]
[1741315813995,30.36490217,141.36,141.31,0.033]
[1741315814197,30.36490217,141.38,141.32,0.14216157]
[1741315814394,36.47840217,141.39,141.32,250.40706374]
[1741315814599,30.36490217,141.38,141.32,220.04216157]
[1741315814820,30.36490217,141.37,141.32,220.04216157]
[1741315815027,30.36490217,141.38,141.32,532.04216157]
[1741315815216,31.90300217,141.4,141.34,7.21726157]
[1741315815412,31.90300217,141.4,141.34,15.03726157]
[1741315815625,30.36490217,141.39,141.34,7.96216157]
[1741315816419,30.36490217,141.38,141.34,7.96216157]
[1741315817432,31.90300217,141.4,141.34,15.03696157]
[1741315817623,30.36490217,141.39,141.34,7.96216157]
[1741315818123,30.36490217,141.38,141.34,7.96216157]
[1741315819237,30.36490217,141.36,141.32,82.1]
[1741315819530,30.36490217,141.35,141.33,0.14216157]
[1741315820434,30.36490217,141.36,141.33,0.14216157]
[1741315820740,0.03,141.38,141.33,82.24216157]
[1741315821314,30.39490217,141.38,141.33,82.24216157]
[1741315821516,0.03,141.38,141.33,89.31756157]
[1741315821936,0.03,141.38,141.33,82.24216157]
[1741315823320,0.03,141.38,141.33,89.31766157]
[1741315823519,0.03,141.38,141.33,119.68256374]
[1741315823829,0.03,141.38,141.35,0.14216157]
[1741315824032,0.03,141.38,141.35,7.88216157]
[1741315824527,0.03,141.38,141.37,0.14216157]
[1741315824730,0.03,141.38,141.37,82.24216157]
[1741315826831,0.03,141.38,141.37,138.47247417]
[1741315827040,0.03,141.38,141.37,276.27247417]
[1741315827413,0.03,141.38,141.37,588.27247417]
[1741315827633,30.39490217,141.38,141.35,137.8]
[1741315827808,30.39490217,141.38,141.32,7.076]
[1741315827809,30.36490217,141.36,141.31,137.833]
[1741315828004,0.03,141.38,141.31,7.1095]
[1741315828308,30.39490217,141.38,141.32,0.14216157]
[1741315828506,30.39490217,141.38,141.32,137.94216157]
[1741315828703,30.36490217,141.37,141.32,137.94216157]
[1741315828923,30.39490217,141.38,141.32,137.94216157]
[1741315829148,30.39490217,141.38,141.31,0.033]
[1741315829149,30.36490217,141.36,141.31,0.033]
[1741315829345,30.36490217,141.36,141.26,6.1353]
[1741315829346,30.36490217,141.32,141.26,82.1]
[1741315829544,30.36490217,141.3,141.26,82.1]
[1741315829724,30.36490217,141.29,141.26,82.1]
[1741315829929,30.36490217,141.29,141.24,148.872233]
[1741315830245,26.35394886,141.35,141.24,11.072233]
[1741315830246,30.36490217,141.26,141.24,11.072233]
[1741315830810,0.14216157,141.31,141.24,11.072233]
[1741315831014,30.36490217,141.27,141.24,11.072233]
[1741315831243,30.36490217,141.27,141.25,0.14216157]
[1741315831422,30.36490217,141.27,141.24,11.072233]
[1741315831625,30.36490217,141.26,141.24,11.072233]
[1741315831831,30.36490217,141.27,141.25,0.14216157]
[1741315832321,30.36490217,141.3,141.24,11.072233]
[1741315832648,7.74,141.33,141.25,0.14216157]
[1741315832818,30.36490217,141.3,141.25,0.14216157]
[1741315833023,30.36490217,141.3,141.25,0.033]
[1741315833430,30.36490217,141.31,141.25,0.033]
[1741315834251,30.36490217,141.31,141.26,0.14216157]
[1741315834818,7.7043,141.35,141.3,30.50706374]
[1741315834819,1.6033,141.35,141.3,30.50706374]
[1741315835045,1.6033,141.35,141.3,112.60706374]
[1741315835235,41.02790983,141.37,141.3,112.60706374]
[1741315835436,30.36490217,141.37,141.3,424.60706374]
[1741315835630,30.39490217,141.38,141.32,0.14216157]
[1741315835820,0.03,141.38,141.32,250.40706374]
[1741315836027,0.03,141.38,141.34,0.14216157]
[1741315836220,0.03,141.38,141.34,37.58166374]
[1741315837021,0.03,141.38,141.36,30.50706374]
[1741315837224,0.03,141.4,141.38,18.933972]
[1741315837452,0.03,141.4,141.39,49.29887417]
[1741315837723,0.03,141.4,141.39,187.09887417]
[1741315838230,0.03,141.4,141.39,168.30706374]
[1741315838534,0.03,141.4,141.39,137.94216157]
[1741315839147,0.03,141.4,141.39,480.30706374]
[1741315839751,0.03,141.4,141.39,506.17147417]
[1741315840050,0.03,141.4,141.39,194.17147417]
[1741315842853,0.03,141.4,141.39,588.27147417]
[1741315843158,0.03,141.4,141.39,588.61455103]
[1741315843448,0.03,141.4,141.39,539.6]
[1741315843657,0.03,141.4,141.39,227.6]
[1741315844153,0.03,141.4,141.39,227.74216157]
[1741315845154,0.03,141.4,141.39,276.89887417]
[1741315845544,0.03,141.4,141.39,227.74216157]
[1741315846131,0.03,141.4,141.39,246.533972]
[1741315846432,0.03,141.4,141.39,283.97147417]
[1741315846628,0.03,141.4,141.39,595.97147417]
[1741315846833,0.0001,141.4,141.39,595.97147417]
[1741315847553,0.0001,141.4,141.39,764.41147417]
[1741315847851,0.0001,141.4,141.39,764.2693126]
[1741315848154,0.0001,141.4,141.39,764.41147417]
[1741315848959,0.0001,141.4,141.39,757.33887417]
[1741315849254,0.0001,141.4,141.39,168.44]
[1741315849457,0.0001,141.4,141.39,176.08]
[1741315849755,0.0001,141.4,141.39,176.22216157]
[1741315849953,0.0001,141.4,141.39,452.35147417]
[1741315851360,0.0001,141.4,141.39,453.04417417]
[1741315851565,0.0001,141.43,141.42,49.29887417]
[1741315851750,0.0001,141.43,141.42,307.56752687]
[1741315851939,0.0001,141.43,141.42,275.71877417]
[1741315852257,0.0001,141.43,141.42,618.08367634]
[1741315852462,0.0001,141.43,141.42,587.71877417]
[1741315852962,0.0001,141.43,141.42,594.78987417]
[1741315853152,0.0001,141.43,141.42,625.15477634]
[1741315853340,0.0001,141.46,141.43,42.213972]
[1741315853538,0.03,141.49,141.45,51.29887417]
[1741315853739,0.03,141.49,141.48,49.29887417]
[1741315853962,0.03,141.49,141.48,238.833972]
[1741315854161,0.03,141.49,141.48,269.19887417]
[1741315854546,0.03,141.49,141.48,276.26697417]
[1741315854746,0.03,141.49,141.48,269.19887417]
[1741315855054,0.03,141.49,141.48,220.04216157]
[1741315855840,0.03,141.49,141.48,82.1]
[1741315856045,0.03,141.49,141.48,82.24216157]
[1741315857664,0.03,141.49,141.48,119.67516374]
[1741315857852,0.03,141.49,141.48,112.60706374]
[1741315858865,0.03,141.49,141.48,119.67516374]
[1741315859158,0.03,141.49,141.48,276.26697417]
[1741315860676,0.03,141.49,141.48,82.24216157]
[1741315860961,0.03,141.49,141.48,82.1]
[1741315861175,0.03,141.49,141.48,82.24216157]
[1741315861635,0.03,141.49,141.46,89.72]
[1741315862046,0.03,141.49,141.47,0.14216157]
[1741315864881,0.03,141.49,141.47,220.04216157]
[1741315865172,0.03,141.49,141.48,30.64922531]
[1741315866364,0.03,141.49,141.48,37.71732531]
[1741315866540,0.03,141.49,141.48,0.14216157]
[1741315866741,0.03,141.49,141.48,7.21026157]
[1741315866940,0.03,141.49,141.48,56.36697417]
[1741315867169,0.03,141.49,141.48,37.57516374]
[1741315867479,0.03,141.49,141.48,82.24216157]
[1741315867846,0.03,141.49,141.48,401.86216157]
[1741315868739,0.03,141.49,141.48,595.88697417]
[1741315868941,0.03,141.49,141.48,258.02706374]
[1741315869169,0.03,141.49,141.48,227.66216157]
[1741315869737,0.03,141.49,141.48,234.73026157]
[1741315870179,0.03,141.49,141.48,283.88697417]
[1741315870352,0.03,141.51,141.5,30.50706374]
[1741315870962,0.03,141.51,141.5,269.19887417]
[1741315871160,0.0001,141.51,141.5,269.19887417]
[1741315871367,0.0001,141.51,141.5,275.47967417]
[1741315871879,0.0001,141.52,141.51,18.933972]
[1741315872056,0.0001,141.52,141.51,269.19887417]
[1741315872256,0.0001,141.52,141.51,276.26547417]
[1741315872959,0.0001,141.53,141.51,306.63037634]
[1741315873161,0.0001,141.53,141.52,81.14672613]
[1741315873480,0.0001,141.53,141.52,88.21282613]
[1741315873685,0.0001,141.53,141.52,56.36497417]
[1741315874078,0.0001,141.53,141.52,57.84807732]
[1741315874381,0.0001,141.53,141.52,88.21297949]
[1741315875456,0.0001,141.55,141.53,18.933972]
[1741315875651,0.0001,141.55,141.54,226.68155489]
[1741315875865,0.0001,141.55,141.54,225.19887417]
[1741315876067,0.03,141.62,141.55,20.933972]
[1741315876259,0.03,141.62,141.61,30.50706374]
[1741315876463,0.03,141.62,141.61,276.81887417]
[1741315877348,0.03,141.62,141.61,258.02706374]
[1741315877681,0.03,141.62,141.61,89.86216157]
[1741315878177,0.03,141.62,141.61,283.88047417]
[1741315878984,0.03,141.62,141.61,595.88047417]
[1741315885780,0.03,141.62,141.61,588.26047417]
[1741315885974,0.03,141.62,141.61,595.88047417]
[1741315886165,0.03,141.62,141.61,565.515572]
[1741315886480,0.03,141.62,141.61,595.88047417]
[1741315887085,0.03,141.67,141.64,23.42216157]
[1741315887258,1.575,141.75,141.68,0.14216157]
[1741315887463,0.03,141.77,141.75,18.933972]
[1741315887661,0.03,141.77,141.76,256.92460835]
[1741315887882,0.03,141.77,141.76,255.44377634]
[1741315888091,23.1886357,141.86,141.77,49.29887417]
[1741315888295,23.1886357,141.86,141.77,50.77926101]
[1741315888581,23.1886357,141.86,141.77,49.29887417]
[1741315888761,30.36490217,141.85,141.77,49.29887417]
[1741315888961,42.61610983,141.86,141.77,49.29887417]
[1741315889261,12.25120766,141.86,141.77,49.29887417]
[1741315889486,42.61610983,141.86,141.77,49.29887417]
[1741315889699,30.36490217,141.85,141.77,49.29887417]
[1741315890201,42.61610983,141.86,141.77,361.29887417]
[1741315890867,12.25120766,141.86,141.77,368.35247417]
[1741315891495,12.25120766,141.86,141.77,361.29887417]
[1741315891794,12.25120766,141.86,141.77,368.35247417]
[1741315891975,12.25120766,141.86,141.83,30.50706374]
[1741315892174,12.25120766,141.86,141.85,0.14216157]
[1741315892879,1.5882,141.86,141.85,0.14216157]
[1741315893312,0.03,141.86,141.85,49.29887417]
[1741315894605,0.03,141.86,141.85,0.14216157]
[1741315894789,0.03,141.86,141.85,7.74216157]
[1741315895094,0.03,141.86,141.85,319.74216157]
[1741315895295,0.03,141.86,141.85,350.10706374]
[1741315895500,0.03,141.86,141.85,368.89887417]
[1741315895814,0.03,141.86,141.85,56.89887417]
[1741315896901,0.03,141.86,141.85,7.74216157]
[1741315898000,0.03,141.86,141.85,56.89887417]
[1741315898595,0.03,141.86,141.85,368.89887417]